Cogmind - Beta 13 @@@ ROGUE MODE // 2024.04.03 @ 10:45:18 Player: twinGeminis Result: Destroyed by KP-0IP(R) with Subdweller Shrapnel Launcher Performance ------------- Evolutions (0) 0 Regions Visited (3) 600 Robots Destroyed (18) 90 Value Destroyed (411) 411 Prototype IDs (2) 40 Alien Tech Used (0) 0 Bonus (103) 103 TOTAL SCORE: 1244 Bonus ------- Follower Combat Kills 120 Friendly Fire -17 Cogmind --------- Core Integrity 0/250 Matter 289/300 Energy 100/100 System Corruption 0% Temperature Cool (0) Movement Rolling (130) Ox2 Location -10/Subcaves Parts ------- > --- POWER (1) -------- (None) > --- PROPULSION (2) --- Subdweller Monowheel > --- UTILITY (2) ------ Heat Sink High-capacity Storage Unit > --- WEAPON (2) ------- Beam Cannon Heavy Battle Rifle > --- INVENTORY (20) --- Ion Engine Light Ion Engine Subdweller Power Source Light Nuclear Core Large Matter Pod (150) Signal Interpreter Propulsion Shielding Beamcaster Beam Cannon Datajack Peak State ------------ > --- POWER ------------ Light Angular Momentum Engine > --- PROPULSION ------- Subdweller Monowheel > --- UTILITY ---------- Heat Sink High-capacity Storage Unit > --- WEAPON ----------- Beamcaster Beam Cannon > --- INVENTORY -------- Ion Engine Light Ion Engine Subdweller Power Source Light Nuclear Core Large Matter Pod Signal Interpreter Propulsion Shielding Beam Cannon Datajack [Rating: 16] Favorites ----------- Power Ion Engine Engine Ion Engine Propulsion Light Treads Treads Light Treads Wheel Subdweller Monowheel Utility High-capacity Storage Unit Device Heat Sink Storage High-capacity Storage Unit Protection Propulsion Shielding Weapon Beam Cannon Energy Gun Beamcaster Energy Cannon Beam Cannon Ballistic Gun Light Assault Rifle Launcher Grenade Launcher Build | -11 -10 -10 -10 ------- Run | Yrd Mat Min Sub Slots Evolved . | . . . . Power . | . . . . Propulsion . | . . . . Utility . | . . . . Weapon . | . . . . Parts Attached 29 | 8 10 2 9 Power 4 | 1 . . 3 Engine 4 | 1 . . 3 Core . | . . . . Reactor . | . . . . Propulsion 10 | 4 4 . 2 Treads 4 | 2 2 . . Leg . | . . . . Wheel 6 | 2 2 . 2 Hover . | . . . . Flight . | . . . . Utility 5 | 1 2 1 1 Device 2 | . . 1 1 Storage 2 | 1 1 . . Processor . | . . . . Hackware . | . . . . Protection 1 | . 1 . . Artifact . | . . . . Weapon 10 | 2 4 1 3 Energy Gun 3 | 1 1 . 1 Energy Cannon 3 | . 1 1 1 Ballistic Gun 3 | 1 1 . 1 Ballistic Cannon . | . . . . Launcher 1 | . 1 . . Special Weapon . | . . . . Impact Weapon . | . . . . Slashing Weapon . | . . . . Piercing Weapon . | . . . . Special Melee Weapon . | . . . . Unidentified Prototypes . | . . . . Parts Lost 9 | . 3 . 6 Power 2 | . . . 2 Propulsion 3 | . 1 . 2 Utility 1 | . . . 1 Weapon 3 | . 2 . 1 Highest Loss Streak 3 | . 2 . 3 To Critical Strikes . | . . . . Average Slot Usage (%) 91 | . 97 100 84 Engine 14 | . 14 14 14 Treads 12 | . 19 28 3 Wheel 8 | . 8 . 11 Device 9 | . . 12 12 Storage 14 | . 14 14 14 Protection 3 | . 12 1 . Energy Gun 8 | . 13 1 9 Energy Cannon 16 | . 3 26 18 Ballistic Gun 2 | . 8 . . Naked Turns . | . . . . Heaviest Build 58 | 13 51 52 58 Greatest Support 40 | 40 40 40 40 Greatest Overweight (x) 17 | . 1 1 17 Average Overweight (x) 1 | . . 1 1 Largest Inventory Capacity 20 | 8 20 20 20 Average Capacity 15 | 7 11 20 20 Most Carried 11 | 6 10 11 10 Average Carried 8 | 5 7 9 8 Final Capacity 20 | 8 20 20 20 Final Carried 10 | 6 9 10 10 Class Distribution -------------------- 71% | Mutant 28% | Scavenger-Mutant Dominant Class ---------------- Mutant | -10/Materials Mutant | -10/Mines Scavenger-Mutant | -10/Subcaves Resources | -11 -10 -10 -10 ----------- Run | Yrd Mat Min Sub Matter Collected 658 | 216 153 197 92 Remotely . | . . . . Salvage Created 429 | . 180 148 101 Parts 27 | . 15 8 4 Haulers Intercepted . | . . . . Recyclers Shooed . | . . . . Parts Field Recycled . | . . . . Retrieved Matter . | . . . . Parts Self-Destructed 11 | . . . 11 Prevented . | . . . . Kills | -11 -10 -10 -10 ------- Run | Yrd Mat Min Sub Combat Hostiles Destroyed 16 | . 8 5 3 Guns 6 | . 5 . 1 Cannons 7 | . . 5 2 AOE 3 | . 3 . . Classes Destroyed 4 | . 3 . 1 Watcher 2 | . 2 . . Swarmer 9 | . 6 3 . Grunt 4 | . 2 2 . Subdweller 3 | . . . 3 Best Kill Streak 3 | . 3 3 1 Combat Bots Only 3 | . 3 3 1 Max Kills in Single Turn 2 | . 2 1 1 Gunslinging 1 | . 1 . . Exploded 1 | . 1 . . Melee . | . . . . Uniques/NPCs Destroyed . | . . . . Combat | -11 -10 -10 -10 -------- Run | Yrd Mat Min Sub Hostile Shots Fired 117 | . 25 34 58 Missed 37 | . 5 9 23 Damage Taken 1551 | . 310 251 990 Core 251 | . 29 48 174 Absorbed by Shields . | . . . . Redirected to Shielding 40 | . 16 24 . Core Remaining (%) 100 | 100 . . . Volleys Fired 58 | . 22 15 21 Largest 2 | . 2 2 2 Hottest 135 | . 70 120 135 Shots Fired 112 | . 41 29 42 Gun 54 | . 37 6 11 Cannon 54 | . . 23 31 Launcher 4 | . 4 . . Special . | . . . . Kinetic 20 | . 18 . 2 Thermal 86 | . 17 29 40 Explosive 4 | . 4 . . Electromagnetic 2 | . 2 . . Robot Hit Streak 15 | . 5 4 15 Robot Miss Streak 3 | . 2 3 1 Penetration Max . | . . . . Secondary Targets 1 | . 1 . . Max Gunslinging Chain 1 | . 1 . . Shots Hit Robots 76 | . 24 16 36 Core Hits 31 | . 14 6 11 Critical Kills . | . . . . Critical Parts Destroyed . | . . . . Critical Strikes 2 | . 1 1 . Burn 2 | . 1 1 . Melee Attacks . | . . . . Impact . | . . . . Slashing . | . . . . Piercing . | . . . . Sneak Attacks . | . . . . Combat Hostiles . | . . . . Follow-up Attacks . | . . . . Damage Inflicted 1285 | . 415 257 613 Guns 460 | . 218 49 193 Cannons 628 | . . 208 420 Explosions 194 | . 194 . . Melee . | . . . . Ramming 3 | . 3 . . Kinetic 143 | . 96 . 47 Thermal 933 | . 110 257 566 Explosive 194 | . 194 . . Electromagnetic 12 | . 12 . . Impact . | . . . . Slashing . | . . . . Piercing . | . . . . Highest Corruption . | . . . . Average Corruption . | . . . . Corruption Purged . | . . . . Corruption Blocked . | . . . . Overload Shots . | . . . . Overflow Damage 41 | . 41 . . Projectiles . | . . . . Explosions 41 | . 41 . . Melee . | . . . . Knockbacks . | . . . . Impact . | . . . . Kinetic . | . . . . Secondary . | . . . . Self-Inflicted Damage 117 | . 117 . . Shots 2 | . 2 . . Rammed 1 | . 1 . . Targets Rammed 1 | . 1 . . Kicked . | . . . . Crushed . | . . . . Highest Temperature 374 | . 136 374 24 Average Temperature 90 | . 41 142 14 Received Heat Transfer 246 | . 66 66 114 Effects 1 | . . 1 . Short Circuit 1 | . . 1 . Siege Activations . | . . . . Robots Corrupted . | . . . . Combat Hostiles . | . . . . Parts Fried . | . . . . Impact Corruptions . | . . . . Robots Melted . | . . . . Combat Hostiles . | . . . . Parts Melted 5 | . 1 3 1 Heat Transferred 2220 | . 407 666 1147 Parts Sabotaged . | . . . . Parts Stolen . | . . . . Parts Stripped . | . . . . Power Chain Reactions . | . . . . Alert | -11 -10 -10 -10 ------- Run | Yrd Mat Min Sub Peak Influence 308 | . 308 126 . Initial 42 | . . 42 . Average 75 | . 156 98 . Maximum Alert Level 1 | . 1 . . Low Security (%) 88 | 100 59 100 . Level 1 11 | . 40 . . Level 2 . | . . . . Level 3 . | . . . . Level 4 . | . . . . Level 5 . | . . . . High Security . | . . . . Max Security . | . . . . Squads Dispatched 2 | . 2 . . Investigation 1 | . 1 . . Extermination . | . . . . Reinforcement 1 | . 1 . . Assault . | . . . . Garrison . | . . . . Intercept . | . . . . Searches Triggered . | . . . . Construction Impeded . | . . . . Haulers Reinforced . | . . . . Active Scanning Responses . | . . . . Cargo Convoy Interrupts . | . . . . Stealth | -11 -10 -10 -10 --------- Run | Yrd Mat Min Sub Distress Signals . | . . . . Communications Jammed . | . . . . Distress Signals . | . . . . Times Spotted 39 | . 15 5 19 Peak Tracking Total 8 | . 4 3 8 Tactical Retreats . | . . . . Traps | -11 -10 -10 -10 ------- Run | Yrd Mat Min Sub Traps Triggered 3 | . 1 . 2 Indirectly . | . . . . Trap Hack Attempts . | . . . . Triggered . | . . . . Disarmed . | . . . . Reprogrammed . | . . . . Reused . | . . . . Traps Extracted . | . . . . Installed . | . . . . Triggered . | . . . . Machines | -11 -10 -10 -10 ---------- Run | Yrd Mat Min Sub Machines Disabled 2 | . 1 1 . Max in Single Turn 1 | . 1 1 . Machines Repaired . | . . . . Machines Dismantled . | . . . . Machines Sabotaged . | . . . . Overloaded Fab Kills . | . . . . Hacking | -11 -10 -10 -10 --------- Run | Yrd Mat Min Sub Machines Accessed 2 | . 2 . . Terminals 2 | . 2 . . Fabricators . | . . . . Repair Stations . | . . . . Recycling Units . | . . . . Scanalyzers . | . . . . Garrison Access . | . . . . Total Hacks 8 | . 8 . . Successful 6 | . 6 . . Failed 2 | . 2 . . Catastrophic . | . . . . Database Lockouts . | . . . . Manual . | . . . . Terminals 8 | . 8 . . Fabricators . | . . . . Repair Stations . | . . . . Recycling Units . | . . . . Scanalyzers . | . . . . Garrison Access . | . . . . Terminal Hacks 6 | . 6 . . Prototype ID Bank 1 | . 1 . . Branch Access Points 1 | . 1 . . Recycling Unit Index 1 | . 1 . . Hauler Manifests 1 | . 1 . . Zone Layout 2 | . 2 . . Fabricator Hacks . | . . . . Repair Station Hacks . | . . . . Recycling Unit Hacks . | . . . . Scanalyzer . | . . . . Garrison Access Hacks . | . . . . Unauthorized Hacks . | . . . . Terminals . | . . . . Fabricators . | . . . . Repair Stations . | . . . . Recycling Units . | . . . . Scanalyzers . | . . . . Garrison Access . | . . . . Data Cores Recovered . | . . . . Used . | . . . . Hacking Detections 2 | . 2 . . Full Trace Events . | . . . . Feedback Events . | . . . . Feedback Blocked . | . . . . Robot Schematics Acquired . | . . . . Robots Built . | . . . . Authchips . | . . . . Time . | . . . . Total Robot Build Rating . | . . . . Part Schematics Acquired . | . . . . Parts Built . | . . . . Authchips . | . . . . Time . | . . . . Total Part Build Rating . | . . . . Parts Repaired . | . . . . Time . | . . . . Parts Recycled . | . . . . Recycled Matter . | . . . . Retrieved Matter . | . . . . Retrieved Components . | . . . . Parts Scanalyzed . | . . . . Part Schematics Acquired . | . . . . Parts Damaged . | . . . . Bothacking | -11 -10 -10 -10 ------------ Run | Yrd Mat Min Sub Used RIF Installer . | . . . . Robots Hacked . | . . . . Non-combat . | . . . . Combat . | . . . . Robot Hacks Applied . | . . . . Relay Couplers Released . | . . . . Fabnet Peak Effective % . | . . . . Robots Rewired . | . . . . Allies Hacked . | . . . . Hacks Repelled . | . . . . Allies | -11 -10 -10 -10 -------- Run | Yrd Mat Min Sub Total Allies 2 | . . 2 . Largest Group 2 | . . 2 2 Highest-Rated Group 42 | . . 42 42 Highest-Rated Ally 31 | . . 31 31 Total Orders . | . . . . Ally Attacks 13 | . . 9 4 Total Damage 146 | . . 82 64 Kills 4 | . . 2 2 Allies Corrupted . | . . . . Allies Melted . | . . . . Intel | -11 -10 -10 -10 ------- Run | Yrd Mat Min Sub Robot Analysis Total . | . . . . Derelict Logs Recovered 1 | . . 1 . Drone Launches . | . . . . Drone Recoveries . | . . . . Exploration | -11 -10 -10 -10 ------------- Run | Yrd Mat Min Sub Turns Passed 3374 | 786 571 580 1437 Spaces Moved 1601 | 144 319 219 919 Core 10 | 4 . . 6 Treads 599 | 124 181 219 75 Legs . | . . . . Wheels 992 | 16 138 . 838 Hover . | . . . . Flight . | . . . . Fastest Speed 50 | 50 80 240 120 Average Speed 160 | 148 150 240 146 Slowest Speed 900 | 160 240 240 900 Overloaded Moves . | . . . . Propulsion Burnouts . | . . . . Robots Hopped . | . . . . Cave-ins Triggered . | . . . . Exploration Rate (%) 43 | 9 68 46 50 Regions Visited 3 Branch Regions 2 Pre-discovered Areas 2 | . . 2 . Known Exits Taken 1 | . 1 . . Unknown Exits Taken 2 | 1 . 1 . Scrap Searched 1 | . . 1 . Spaces Dug . | . . . . Terrain Destroyed 40 | . 40 . . Melee . | . . . . Projectile . | . . . . AOE 40 | . 40 . . Terrain Rammed . | . . . . Walls Destroyed . | . . . . Machines Disabled . | . . . . Actions | -11 -10 -10 -10 --------- Run | Yrd Mat Min Sub Total 2302 | 715 375 245 967 Wait 567 | 552 . 7 8 Move 1598 | 143 318 218 919 Hop . | . . . . Pick Up 36 | 12 15 2 7 Fast Attach . | . . . . Attach 16 | 6 5 . 5 Detach . | . . . . Swap 13 | 2 5 2 4 Drop 13 | . 9 1 3 Fire 58 | . 22 15 21 Melee . | . . . . Ram 1 | . 1 . . Kick . | . . . . Crush . | . . . . Escape Stasis . | . . . . Rewire . | . . . . Trap . | . . . . Miscellaneous . | . . . . Route ------- -11/Scrapyard -10/Materials (discovered 4 exits: [*Mat x2] / *Min x2) -10/Mines (discovered 2 exits: [*Mat] / [*Sub]) -10/Subcaves History --------- Turn | Location | Event 16 | -11/Scrapyard | Discovered new exit (range 15) 787 | -11/Scrapyard | Entered Materials 794 | -10/Materials | Build established: Mutant 867 | -10/Materials | Identified exit to Mines 940 | -10/Materials | Discovered new exit (range 14) 1224 | -10/Materials | Discovered new exit (range 12) 1358 | -10/Materials | Entered Mines 1490 | -10/Mines | Learned location of Storage (-8) 1516 | -10/Mines | Discovered new exit (range 5) 1876 | -10/Mines | Discovered new exit (range 6) 1938 | -10/Mines | Entered Subcaves 1938 | -10/Subcaves | Accompanied by 2 allies 1943 | -10/Subcaves | Led the pair of lost Derelicts to an unsafe place 2154 | -10/Subcaves | Ambushed by swarm of Subdwellers 2155 | -10/Subcaves | Ambushed by Subdwellers from Twisted Machinery 2155 | -10/Subcaves | Ambushed by Subdwellers from Twisted Machinery 2158 | -10/Subcaves | Core integrity fell below 50% 2198 | -10/Subcaves | Lost 3 parts (1p1n1w) 2388 | -10/Subcaves | Core integrity fell below 20% 2657 | -10/Subcaves | Build established: Scavenger-Mutant 3311 | -10/Subcaves | Shifting Twisted Machinery released Hvy. Battle Rifle 3375 | -10/Subcaves | Destroyed by KP-0IP(R) with Subdweller Shrapnel Launcher Last Messages --------------- 02406_ CV-B88(R) destroyed. 02409_ Acquired 10 matter. 02464_ Subatomizers dissect the Sub. Power Source. 02470_ JA-18W(R) destroyed. 02475_ Subatomizers dissect the Sub. Power Source. 02475_ S-10 Pest destroyed. 02482_ II-RUL(R) affixes Scrap Shield Fragment to Scrap Shield. 02483_ II-RUL(R) destroyed. 02488_ Flight Unit fries itself beyond repair. 02645_ BZ-B0H(u) tweaks Twisted Machinery. 02847_ Acquired Broken Sub. Monowheel. 02848_ Dropped Broken Sub. Monowheel. Hvy. Battle Rifle falls loose from the Twisted Machinery. 03322_ Acquired Hvy. Battle Rifle. 03371_ UB-OKL(h) destroyed. 03375_ Lgt. Angular Momentum Engine destroyed. Map ----- +----------------------------------------------------+ | ?????????????????????????????????????????????????? | | ?????????????????????????????????????????????????? | | ????????????????????????????????????????????###### | | ???????????????????????????????????????????## | | ??????????????????????????????????????????## | | ?????????????????????????????????????????## | | ?????????????????????????????????????????# | | ?????????????????????????????????????????# ## | | ?????????????????????????????????????????# #" | | ?????????????????????????????????????????## " | | ????????????????????????????????????????### | | ?????????????????????#??????????????????# | | ????????????????????## ????????????????## | | ???????????????????? ?????????????????# | | ????????????????????? ?????????????????## % | | ?????????????????????% ??????????????????## | | ????????????????????? ?????????????????## | | ?????????????????????? ?????????????????# | | ?????????????????????? ????????????????## | | ??????????????????????# ???????????????## | | ???????????? ##??????## ???????????????# | | ??????????? ###### ???????????????# | | ??????????? % ???????????????## | | ???????????# ####???####?????# | | ?????????????# ;;##### #?????# | | ??????????????# @ ;;# #??#### | | ??????????????# ; ##?# ## | | ??????????????# g ;# ### ###### | | ?????????? R g ;## ## ##????# | | ?????????? ;;! ;## #?##### | | ???????????#### # #;;% ;### ### | | ???????????####### ###; ;#?### ## | | ???????????# #?####??# #;#???## ## ### | | ???????????# #???###?# ## ##???# ## ### # | | ???????????## ##### #?# ## ##### #### # | | ???????????## ## ### ## #?## # | | ??????????## ## ## ##?# | | ??????????# #??# # | | ??????????## ## ### ##??### ## | | ???????????# ## #?### ##?????####? | | ???????????#### ## #??## ##??????????? | | ??????????????# "" ## #### #???????????? | | ??????????????####" #### ## #???????????? | | ?????????????????### ##??# #???????????? | | ???????????????????####???### #???????????? | | ????????????????????????????## #???????????? | | ?????????????????????????????#### #??????????? | | ????????????????????????????????## #??????????? | | ?????????????????????????????????######??????????? | | ?????????????????????????????????????????????????? | +----------------------------------------------------+ Best States ------------- Heat Dissipation 39 Energy Generation 18 Energy Capacity 250 Matter Stores 300 Matter Capacity 300 Sight Range 16 Terrain Scan Density 10 Propulsion Shielding 33 Evasion (%) 50 Recoil Reduction 2 Item Schematics ----------------- None Robot Schematics ------------------ None Fabricated ------------ Nothing Alien Tech Used ----------------- None Achievements -------------- None Challenges ------------ None Game ------ Seed SapperReactionPit Manual? 0 Play Time 00:24:21 Cumulative 3.7 hours Start 2024.04.03 @ 10:20:07 End 2024.04.03 @ 10:45:18 Sessions 1 Manual Loads 0 Difficulty Rogue Special Mode None Game No. 6 Rogue 6 Adventurer 0 Explorer 0 Win Type - Total 0 Types 0/0/0/0/0/0/0/0/0 Lore% 7 Gallery% 11 Achievement% 9 Wizard Run 0 Options --------- Layout 1 ASCII 0 Keyboard 0 Movement Mouse Keybinds 0 Fullscreen 1 Font 24/Smallcaps Map View 50x35 Zoom Use 0% Tactical HUD 1 Map Filters NONE Filters NONE Steam 1 RUN: 10198f5f-0775-43e8-a798-cbf0d82fad61